bitfinex-derivatives/quotes_SOLF0:USTF0_20251020
["timestamp","ask_amount","ask_price","bid_price","bid_amount"]
[1760989800161,1.94,189.14,189.05,4.83757654]
[1760989800354,2.03496843,189.22,189.11,2.81]
[1760989800665,1.94,189.24,189.2,2.81]
[1760989801165,2.95466662,189.3,189.24,4.7547]
[1760989801352,2.95466662,189.3,189.24,2.81]
[1760989801551,2.03496843,189.26,189.18,2.81]
[1760989801771,2.95466662,189.3,189.24,2.81]
[1760989802261,44.12,189.31,189.26,2.81]
[1760989802866,44.12,189.31,189.27,4.7541]
[1760989803066,44.12,189.31,189.28,2.81]
[1760989804065,46.15496843,189.31,189.28,2.81]
[1760989805357,2.03496843,189.31,189.28,2.81]
[1760989806470,2.03496843,189.33,189.28,2.81]
[1760989806870,2.03496843,189.33,189.29,4.7536]
[1760989807064,2.03496843,189.33,189.3,2.81]
[1760989807669,44.16,189.36,189.3,2.81]
[1760989808070,44.14,189.43,189.3,2.81]
[1760989808268,2.03496843,189.38,189.32,2.81]
[1760989808574,2.03496843,189.36,189.32,2.81]
[1760989808758,2.03496843,189.36,189.19,9.68130109]
[1760989808759,2.03496843,189.33,189.28,7.5636]
[1760989808960,2.03496843,189.33,189.29,2.81]
[1760989809164,1.94,189.37,189.29,2.81]
[1760989809361,2.03496843,189.33,189.29,2.81]
[1760989810969,2.03496843,189.31,189.29,2.81]
[1760989811180,3.97496843,189.31,189.25,2.81]
[1760989811368,2.03496843,189.28,189.25,2.81]
[1760989812569,2.03496843,189.26,189.25,2.81]
[1760989812774,2.03496843,189.26,189.23,2.81]
[1760989813572,2.03496843,189.24,189.23,2.81]
[1760989813770,1.94,189.29,189.23,2.81]
[1760989813975,2.03496843,189.24,189.23,2.81]
[1760989814175,2.03496843,189.24,189.18,2.81]
[1760989814565,2.03496843,189.26,189.2,2.81]
[1760989815275,2.03496843,189.26,189.21,2.75]
[1760989815474,2.03496843,189.24,189.21,2.75]
[1760989816275,2.03496843,189.26,189.21,2.75]
[1760989817676,2.03496843,189.24,189.21,2.75]
[1760989817880,2.03496843,189.24,189.13,4.78496843]
[1760989818179,1.94,189.32,189.22,4.7554]
[1760989818369,1.94,189.32,189.23,2.75]
[1760989818575,2.03496843,189.29,189.23,2.75]
[1760989819377,2.03496843,189.29,189.25,2.75]
[1760989819676,2.03496843,189.3,189.25,2.75]
[1760989820277,2.03496843,189.28,189.25,4.7544]
[1760989820478,2.03496843,189.28,189.25,7.5044]
[1760989820777,2.03496843,189.26,189.18,2.75]
[1760989821380,2.03496843,189.24,189.18,2.75]
[1760989821685,2.03496843,189.24,189.2,2.75]
[1760989821874,1.94,189.28,189.2,2.75]
[1760989822074,2.03496843,189.24,189.2,2.75]
[1760989822482,2.03496843,189.24,189.17,2.75]
[1760989823276,2.03496843,189.24,189.2,2.75]
[1760989823583,1.94,189.26,189.2,2.75]
[1760989823978,2.03496843,189.23,189.2,2.75]
[1760989824181,2.03496843,189.25,189.21,2.75]
[1760989824782,2.03496843,189.25,189.21,7.5055]
[1760989825086,2.03496843,189.25,189.22,2.75]
[1760989825583,2.03496843,189.26,189.22,2.75]
[1760989826286,2.03496843,189.24,189.22,2.75]
[1760989827886,2.03496843,189.2,189.19,2.75]
[1760989829482,2.03496843,189.23,189.19,2.75]
[1760989830391,3.97496843,189.23,189.19,2.75]
[1760989831183,1.94,189.22,189.16,7.5768]
[1760989831382,3.97496843,189.21,189.16,7.5768]
[1760989831584,2.03496843,189.21,189.16,2.82]
[1760989831788,3.97496843,189.19,189.15,2.82]
[1760989831989,2.03496843,189.19,189.15,2.82]
[1760989832184,418.0,189.32,189.12,4.7579]
[1760989832185,2.03496843,189.17,189.12,4.7579]
[1760989832389,1.94,189.16,189.12,2.82]
[1760989832592,2.03496843,189.15,189.08,2.82]
[1760989833493,2.03496843,189.15,189.12,2.82]
[1760989834397,1.94,189.16,189.12,2.82]
[1760989834791,1.94,189.16,189.09,4.7585]
[1760989834986,2.03496843,189.15,189.09,4.7585]
[1760989835186,1.94,189.14,189.05,4.85496843]
[1760989835799,1.94,189.14,189.06,2.82]
[1760989836099,2.03496843,189.13,189.07,4.759]
[1760989836803,1.94,189.14,189.07,4.759]
[1760989837186,1.94,189.13,189.06,2.82]
[1760989837691,6.6981,189.12,189.04,4.7598]
[1760989837896,1.94,189.11,189.02,2.82]
[1760989838601,1.94,189.11,189.04,2.82]
[1760989838800,1.94,189.11,189.0,5.99731599]
[1760989839098,1.94,189.1,189.02,4.7603]
[1760989839803,1.94,189.09,189.0,2.82]
[1760989840295,1.94,189.08,189.01,7.5805]
[1760989840493,3.17731599,189.12,189.01,2.82]
[1760989840494,1.94,189.11,189.01,2.82]
[1760989842004,1.94,189.1,189.03,4.7599]
[1760989842798,1.94,189.09,189.03,4.7599]
[1760989843104,1.94,189.09,189.01,7.5807]
[1760989843496,1.94,189.08,189.01,2.82]
[1760989844892,1.94,189.07,188.97,10.83489253]
[1760989845192,1.94,189.07,188.98,2.82]
[1760989846498,1.94,189.05,188.97,3.17731599]
[1760989847503,1.94,189.05,188.95,2.82]
[1760989847703,1.94,189.05,188.95,5.99731599]
[1760989848007,6.7001,189.04,188.97,4.7616]
[1760989848499,1.94,189.03,188.95,5.99731599]
[1760989848699,1.94,189.03,188.95,2.82]
[1760989849205,1.94,189.02,188.95,7.5821]
[1760989850104,1.94,189.02,188.95,2.82]
[1760989850294,3.17731599,189.08,188.93,5.56507]
[1760989850295,1.94,189.01,188.93,5.56507]
[1760989851003,1.94,188.99,188.93,5.56507]
[1760989852812,1.94,188.99,188.93,10.32757]
[1760989855403,1.94,188.99,188.93,5.56507]
[1760989855602,6.7013,188.99,188.93,5.56507]
[1760989856106,1.94,188.98,188.93,5.56507]
[1760989856308,1.94,188.98,188.93,8.38507]
[1760989856706,1.94,188.98,188.93,5.56507]
[1760989858213,1.94,188.98,188.93,8.44507]
[1760989860314,1.94,188.98,188.93,5.56507]
[1760989860712,1.93,188.97,188.93,5.56507]
[1760989861118,1.93,188.97,188.93,8.44507]
[1760989861313,1.93,188.97,188.93,5.56507]
[1760989861508,4.762,188.96,188.93,5.56507]
[1760989861811,1.93,188.95,188.93,5.56507]
[1760989863906,1.93,188.95,188.88,4.7638]
[1760989863907,1.93,188.94,188.86,10.82161599]
[1760989864103,1.93,188.94,188.87,2.88]
[1760989864909,6.6927,188.94,188.88,4.7638]
[1760989865509,1.93,188.92,188.84,2.88]
[1760989866111,1.93,188.9,188.78,6.05731599]
[1760989866413,1.93,188.9,188.79,2.88]
[1760989866617,1.93,188.9,188.72,15.98990073]
[1760989866618,1.93,188.9,188.84,2.88]
[1760989867222,6.6936,188.9,188.84,2.88]
[1760989867719,1.93,188.9,188.84,2.88]
[1760989868325,1.93,188.89,188.84,7.6448]
[1760989868820,1.93,188.89,188.85,2.88]
[1760989870025,6.6938,188.89,188.82,7.6453]
[1760989870216,6.6938,188.89,188.82,2.88]
[1760989870524,1.93,188.93,188.82,2.88]
[1760989872024,1.93,188.89,188.85,2.88]
[1760989873121,1.93,188.88,188.78,2.88]
[1760989873715,1.93,188.88,188.84,2.88]
[1760989875129,1.93,188.88,188.81,7.5056]
[1760989875326,1.93,188.88,188.81,2.74]
[1760989875529,1.94,188.87,188.76,2.74]
[1760989876234,1.94,188.87,188.79,4.7661]
[1760989876420,1.94,188.87,188.76,2.74]
[1760989876820,1.94,188.86,188.76,2.74]
[1760989877330,1.94,188.8,188.76,2.74]
[1760989877519,1.94,188.83,188.76,2.74]
[1760989877723,1.94,188.82,188.74,4.7674]
[1760989878527,4.7659,188.81,188.75,7.5071]
[1760989878931,4.7659,188.81,188.75,2.74]
[1760989879827,6.7059,188.81,188.75,2.74]
[1760989880226,1.94,188.86,188.77,2.74]
[1760989880928,1.94,188.85,188.77,7.5066]
[1760989881330,1.94,188.85,188.77,2.74]
[1760989881732,6.7048,188.85,188.78,4.7663]
[1760989881928,1.94,188.84,188.78,4.7663]
[1760989882431,6.7051,188.84,188.77,2.74]
[1760989882632,1.94,188.83,188.77,2.74]
[1760989882832,1.94,188.83,188.76,4.7668]
[1760989883327,1.94,188.89,188.74,3.17731599]
[1760989883530,1.94,188.87,188.75,2.74]
[1760989884120,1.94,188.86,188.75,2.74]
[1760989884529,1.94,188.86,188.77,3.17731599]
[1760989884728,4.7638,188.89,188.82,2.74]
[1760989885235,1.94,188.88,188.82,2.74]
[1760989886021,1.94,188.88,188.82,7.5053]
[1760989886433,0.18641,188.92,188.78,2.74]
[1760989886434,1.94,188.87,188.78,2.74]
[1760989886639,1.94,188.87,188.79,2.74]
[1760989887131,1.94,188.87,188.79,7.5061]
[1760989888024,6.7146,188.86,188.79,7.5061]
[1760989889537,6.7148,188.85,188.79,7.5061]
[1760989894645,6.7148,188.85,188.79,2.74]
[1760989895936,6.7148,188.85,188.79,7.5061]
[1760989896344,6.7148,188.85,188.79,2.74]
[1760989896544,4.7643,188.87,188.83,2.69]
[1760989896943,6.7143,188.87,188.83,2.69]
[1760989897447,1.95,188.86,188.82,4.7653]
[1760989897642,1.95,188.84,188.8,4.7658]
[1760989897839,1.95,188.91,188.78,2.69]
[1760989898037,1.95,188.91,188.8,3.17731599]
[1760989898234,6.7138,188.89,188.81,2.69]
[1760989898744,1.95,188.88,188.82,2.03870647]
[1760989898941,1.95,188.87,188.81,4.7656]
[1760989899949,6.7143,188.87,188.81,4.7656]
[1760989900142,1.95,188.87,188.79,4.72870647]
[1760989900345,1.95,188.86,188.79,2.69]
[1760989900844,2.03870647,188.89,188.8,2.03870647]
[1760989901051,2.03870647,188.89,188.81,2.69]
[1760989901349,6.7146,188.86,188.82,2.69]
[1760989902437,4.7646,188.86,188.82,2.69]
[1760989902643,1.95,188.85,188.82,2.69]
[1760989903652,1.95,188.84,188.8,2.69]
[1760989904457,1.95,188.84,188.79,4.7661]
[1760989904649,1.95,188.83,188.79,4.7661]
[1760989904850,1.95,188.83,188.77,4.7666]
[1760989905241,1.95,188.82,188.74,6.92013707]
[1760989905449,1.95,188.82,188.74,6.80610647]
[1760989905649,1.95,188.82,188.75,2.69]
[1760989907047,1.95,188.79,188.72,6.92013707]
[1760989907855,1.95,188.79,188.74,4.7673]
[1760989908150,1.95,188.78,188.74,2.69]
[1760989908354,1.95,188.78,188.73,4.8814306]
[1760989908554,1.95,188.78,188.73,7.4576]
[1760989908751,4.7666,188.78,188.73,7.4576]
[1760989908948,1.95,188.77,188.72,2.69]
[1760989909150,1.95,188.77,188.71,4.8814306]
[1760989909151,1.95,188.77,188.71,4.7681]
[1760989909860,1.95,188.76,188.7,4.8814306]
[1760989910059,1.95,188.76,188.69,7.5714306]
[1760989910246,1.95,188.76,188.7,2.69]
[1760989910453,2.03870647,188.81,188.73,2.69]
[1760989910755,3.98870647,188.81,188.73,2.69]
[1760989911158,1.95,188.81,188.75,2.69]
[1760989911860,1.95,188.79,188.75,2.69]
[1760989913553,1.95,188.79,188.74,6.80610647]
[1760989913759,1.95,188.79,188.72,9.49650647]
[1760989914056,6.7164,188.79,188.72,12.3392306]
[1760989914364,6.7164,188.79,188.72,7.4578]
[1760989914762,4.7666,188.78,188.72,7.4578]
[1760989914962,6.7166,188.78,188.72,2.69]
[1760989916062,6.7166,188.78,188.72,7.4579]
[1760989916760,2.03870647,188.75,188.68,4.8814306]
[1760989916960,1.95,188.77,188.7,2.69]
[1760989917162,1.95,188.77,188.71,2.03870647]
[1760989917562,6.7169,188.77,188.71,7.5881]
[1760989917757,2.03870647,188.78,188.72,2.82]
[1760989918063,2.03870647,188.8,188.72,2.82]
[1760989918968,4.7662,188.79,188.73,7.5876]
[1760989919169,1.95,188.81,188.73,2.82]
[1760989919466,2.03870647,188.82,188.73,2.82]
[1760989919666,28.38,188.83,188.76,2.82]
[1760989919862,32.36870647,188.83,188.76,2.82]
[1760989920362,1.95,188.76,188.69,4.8814306]
[1760989920569,1.95,188.76,188.68,2.82]
[1760989920867,2.03870647,188.75,188.68,2.82]
[1760989922070,6.80600647,188.75,188.69,4.7686]
[1760989922661,2.03870647,188.79,188.71,2.82]
[1760989922858,1.95,188.86,188.71,2.03870647]
[1760989923058,4.7661,188.8,188.72,7.5878]
[1760989923259,8.75480647,188.8,188.73,2.82]
[1760989923459,3.98870647,188.78,188.73,2.82]
[1760989923661,1.95,188.77,188.73,2.82]
[1760989924067,6.80530647,188.78,188.73,2.82]
[1760989924262,8.75530647,188.78,188.73,2.82]
[1760989924463,1.95,188.76,188.7,7.5883]
[1760989924661,3.98870647,188.76,188.7,2.82]
[1760989926061,2.03870647,188.78,188.7,2.82]
[1760989926468,3.98870647,188.78,188.7,2.82]
[1760989926877,4.7668,188.77,188.7,7.5883]
[1760989927072,4.93820688,188.85,188.7,7.5883]
[1760989927073,3.98870647,188.76,188.7,7.5883]
[1760989927865,1.95,188.76,188.7,7.5883]
[1760989928074,6.7171,188.76,188.7,7.5883]
[1760989928475,1.95,188.75,188.68,4.7689]
[1760989928972,3.98870647,188.75,188.68,4.7689]
[1760989929678,1.95,188.74,188.68,4.7689]
[1760989929973,1.95,188.74,188.67,2.82]
[1760989930374,2.03870647,188.78,188.71,2.82]
[1760989930571,3.98870647,188.78,188.71,2.82]
[1760989932073,4.7668,188.77,188.71,7.5881]
[1760989933368,3.98870647,188.78,188.72,4.7679]
[1760989935181,8.75530647,188.78,188.72,7.6579]
[1760989936177,1.95,188.81,188.74,2.89]
[1760989936378,3.98870647,188.79,188.74,2.89]
[1760989936776,1.95,188.79,188.75,2.89]
[1760989937167,1.95,188.79,188.72,2.03870647]
[1760989937372,6.7163,188.79,188.73,4.7676]
[1760989938471,6.7163,188.79,188.73,7.6576]
[1760989938776,6.7163,188.79,188.73,2.89]
[1760989938982,1.95,188.77,188.69,4.90033716]
[1760989939175,1.95,188.77,188.69,2.89]
[1760989939573,3.98870647,188.77,188.69,2.89]
[1760989939773,4.7671,188.76,188.7,7.6584]
[1760989940284,4.7665,188.78,188.72,2.89]
[1760989942087,8.75480647,188.8,188.73,2.89]
[1760989942784,6.7161,188.8,188.74,4.7674]
[1760989942989,4.7655,188.82,188.75,2.89]
[1760989943485,4.7655,188.82,188.76,4.7668]
[1760989943691,4.7655,188.82,188.76,7.6568]
[1760989944177,6.7158,188.81,188.76,4.7668]
[1760989944382,6.7158,188.81,188.77,2.89]
[1760989947582,4.7658,188.81,188.77,2.89]
[1760989948093,6.7158,188.81,188.77,2.89]
[1760989948892,2.03870647,188.8,188.77,2.89]
[1760989949295,6.7158,188.81,188.77,2.89]
[1760989949491,2.03870647,188.8,188.77,2.89]
[1760989952093,3.98870647,188.8,188.77,2.89]
[1760989953700,4.7658,188.81,188.77,2.89]
[1760989953894,2.03870647,188.8,188.77,2.89]
[1760989954199,3.98870647,188.8,188.77,2.89]
[1760989954700,8.75480647,188.8,188.74,4.7674]
[1760989955102,3.98870647,188.78,188.74,7.5774]
[1760989955402,3.98870647,188.78,188.75,2.81]
[1760989956086,3.98870647,188.78,188.74,7.5774]
[1760989956295,3.98870647,188.78,188.75,2.81]
[1760989957605,2.03870647,188.78,188.75,7.5772]
[1760989960108,1.95,188.77,188.73,12.47793716]
[1760989960307,2.03870647,188.76,188.73,4.7676]
[1760989960609,3.98870647,188.76,188.73,4.7676]
[1760989960808,1.95,188.76,188.73,4.7676]
[1760989961010,1.95,188.76,188.72,2.81]
[1760989961202,1.95,188.76,188.7,4.90033716]
[1760989961505,1.95,188.74,188.7,12.47873716]
[1760989963104,1.95,188.74,188.7,7.5784]
[1760989963401,1.95,188.73,188.68,9.66923716]
[1760989963608,1.95,188.73,188.68,7.5789]
[1760989963800,1.95,188.73,188.68,2.81]
[1760989963801,6.7178,188.73,188.68,2.81]
[1760989964004,4.7678,188.73,188.68,4.90033716]
[1760989964206,4.7678,188.73,188.69,2.81]
[1760989964506,6.7173,188.75,188.69,4.90033716]
[1760989964714,6.7173,188.75,188.7,2.81]
[1760989965000,46.11,188.76,188.71,2.81]
[1760989965206,1.95,188.76,188.71,2.81]
[1760989965994,6.7171,188.76,188.71,4.7681]
[1760989966192,44.16,188.78,188.7,4.90033716]
[1760989966193,44.16,188.78,188.72,2.81]
[1760989967812,46.11,188.78,188.72,2.81]
[1760989968109,50.8765,188.78,188.72,7.5779]
[1760989968808,1.95,188.77,188.72,7.5779]
[1760989970310,1.95,188.77,188.73,2.81]
[1760989970503,1.95,188.76,188.72,4.7679]
[1760989970704,1.95,188.76,188.73,2.81]
[1760989970908,4.7669,188.77,188.73,2.81]
[1760989971311,6.7169,188.77,188.73,2.81]
[1760989971813,1.95,188.76,188.72,4.7679]
[1760989972613,1.95,188.76,188.72,7.5779]
[1760989972810,1.95,188.76,188.73,2.81]
[1760989975311,44.16,188.78,188.74,4.7674]
[1760989975611,46.11,188.78,188.75,2.81]
[1760989977515,44.16,188.78,188.75,2.81]
[1760989979316,44.16,188.78,188.76,2.67]
[1760989980115,46.11,188.78,188.74,7.57033716]
[1760989980317,1.95,188.77,188.74,7.57033716]
[1760989980506,44.16,188.78,188.75,2.67]
[1760989981213,44.16,188.78,188.75,4.7671]
[1760989981417,44.16,188.78,188.76,2.67]
[1760989982019,44.16,188.78,188.77,2.67]
[1760989987613,1.95,188.83,188.79,2.67]
[1760989987818,46.09,188.82,188.79,2.67]
[1760989988220,46.09,188.82,188.79,7.4361]
[1760989988415,44.14,188.82,188.8,2.67]
[1760989988925,44.14,188.82,188.81,2.67]
[1760989989429,6.7143,188.87,188.81,2.67]
[1760989989616,1.95,188.85,188.81,2.67]
[1760989989811,1.95,188.85,188.8,7.4359]
[1760989990123,41.0,188.86,188.81,2.67]
[1760989990316,42.95,188.86,188.8,2.67]
[1760989992120,1.95,188.85,188.82,7.4353]
[1760989992620,1.95,188.85,188.77,4.90033716]
[1760989992810,1.95,188.85,188.78,2.67]
[1760989994022,1.95,188.84,188.78,7.4364]
[1760989994419,41.0,188.86,188.78,2.67]
[1760989994725,50.9045538,188.86,188.8,7.4358]
[1760989995023,50.9045538,188.86,188.79,2.85]
[1760989996025,1.95,188.85,188.81,7.6156]
[1760989997219,1.95,188.85,188.82,2.85]
[1760989998917,41.0,188.86,188.83,2.85]
[1760989999317,1.95,188.84,188.78,4.90033716]
[1760989999518,1.95,188.84,188.77,7.75033716]
[1760989999723,1.95,188.84,188.8,4.7659]
[1760990000021,1.95,188.84,188.81,2.85]
[1760990000227,3.1899538,188.85,188.81,2.85]
[1760990000228,3.1899538,188.85,188.82,2.85]
[1760990000524,41.0,188.86,188.82,2.85]
[1760990000718,42.95,188.86,188.82,2.85]
[1760990001325,1.95,188.85,188.78,2.85]
[1760990002228,1.95,188.85,188.82,4.7654]
[1760990002434,1.95,188.85,188.82,7.6154]
[1760990003626,41.0,188.86,188.83,2.85]
[1760990003827,42.95,188.86,188.83,2.85]
[1760990004224,41.0,188.86,188.84,2.85]
[1760990004833,3.1899538,188.91,188.81,2.85]
[1760990005022,3.1899538,188.91,188.83,2.85]
[1760990005219,46.27641,188.92,188.87,4.7641]
[1760990005432,46.27641,188.92,188.88,2.85]
[1760990005926,1.95,188.91,188.88,2.85]
[1760990007030,1.95,188.91,188.88,7.6138]
[1760990007928,44.32641,188.92,188.9,7.6734]
[1760990008232,44.32641,188.92,188.88,2.91]
[1760990009025,46.26641,188.92,188.88,7.6738]
[1760990009232,46.26641,188.92,188.89,2.91]
[1760990009929,2.12641,188.92,188.89,2.91]
[1760990010332,0.18641,188.92,188.89,2.91]
[1760990010831,2.12641,188.92,188.89,2.91]
[1760990011023,0.18641,188.92,188.89,7.6736]
[1760990011224,0.18641,188.92,188.9,2.91]
[1760990011725,0.18641,188.92,188.91,2.91]
[1760990011925,2.12641,188.92,188.85,2.91]
[1760990012230,5.1299538,188.91,188.88,4.7638]
[1760990012432,5.1299538,188.91,188.88,7.6738]
[1760990012632,3.1899538,188.91,188.89,2.91]
[1760990013834,5.1299538,188.91,188.88,4.7638]
[1760990014134,5.1299538,188.91,188.88,7.6738]
[1760990016733,1.94,188.9,188.86,4.7643]
[1760990016920,1.94,188.9,188.83,2.91]
[1760990017123,0.18641,188.92,188.83,2.91]
[1760990017124,1.94,188.87,188.83,2.91]
[1760990017429,1.94,188.87,188.84,4.7648]
[1760990017631,1.94,188.87,188.84,7.6748]
[1760990017935,3.1899538,188.88,188.85,2.91]
[1760990019025,3.1899538,188.88,188.86,2.91]
[1760990020732,2.03861176,188.88,188.86,2.91]
[1760990021530,3.97861176,188.88,188.84,2.91]
[1760990021730,2.03861176,188.86,188.84,2.91]
[1760990023242,2.03861176,188.87,188.84,2.91]
[1760990023737,2.03861176,188.87,188.84,4.7648]
[1760990023943,2.03861176,188.87,188.85,2.91]
[1760990024940,1.94,188.88,188.85,2.91]
[1760990027244,1.94,188.88,188.85,7.6746]
[1760990027444,3.97861176,188.89,188.86,2.91]
[1760990028041,2.03861176,188.89,188.86,2.91]
[1760990028243,3.97861176,188.89,188.86,2.91]
[1760990028448,2.03861176,188.89,188.87,2.91]
[1760990029943,2.03861176,188.89,188.87,7.6741]
[1760990030450,2.03861176,188.89,188.87,2.91]
[1760990032048,3.97861176,188.89,188.86,4.7643]
[1760990032449,3.97861176,188.89,188.86,7.6743]
[1760990033050,3.97861176,188.89,188.87,2.91]
[1760990033753,1.94,188.88,188.85,2.91]
[1760990034052,2.03861176,188.89,188.84,4.7648]
[1760990034053,3.97861176,188.87,188.84,7.6748]
[1760990034244,3.97861176,188.87,188.85,2.91]
[1760990034444,2.03861176,188.87,188.86,2.91]
[1760990034847,2.03861176,188.89,188.86,2.91]
[1760990035043,5.68466136,188.92,188.87,2.91]
[1760990035245,34.05203396,188.98,188.87,2.91]
[1760990035246,4.762,188.96,188.87,2.91]
[1760990035448,2.03861176,188.95,188.88,7.81033716]
[1760990035654,2.03861176,188.95,188.89,2.91]
[1760990035857,2.03861176,188.95,188.92,2.91]
[1760990036257,2.03861176,188.97,188.92,2.91]
[1760990036856,2.03861176,188.97,188.95,2.91]
[1760990038068,3.97861176,188.97,188.94,7.5023]
[1760990038760,2.03861176,188.95,188.92,7.5028]
[1760990038961,3.97861176,188.93,188.9,2.74]
[1760990039256,2.03861176,188.97,188.92,2.74]
[1760990039455,2.03861176,188.97,188.95,2.74]
[1760990040260,0.17653,189.0,188.91,4.90033716]
[1760990040261,2.21514176,189.0,188.97,2.74]
[1760990040568,4.15514176,189.0,188.97,2.74]
[1760990040762,4.15514176,189.0,188.92,4.90033716]
[1760990040763,2.21514176,189.0,188.95,7.5021]
[1760990041065,3.97861176,188.99,188.95,7.5021]
[1760990041459,3.97861176,188.99,188.96,2.74]
[1760990043660,2.03861176,188.99,188.95,4.7621]
[1760990043970,1.94,188.96,188.92,2.74]
[1760990044460,4.15514176,189.0,188.92,2.74]
[1760990044663,2.11653,189.0,188.92,2.74]
[1760990045172,2.11653,189.0,188.96,7.5019]
[1760990045370,2.11653,189.0,188.97,2.74]
[1760990046265,0.17653,189.0,188.97,2.74]
[1760990047362,0.17653,189.0,188.97,7.5016]
[1760990048168,0.17653,189.0,188.98,4.7612]
[1760990048375,0.17653,189.0,188.99,2.74]
[1760990052773,0.17653,189.0,188.96,4.7618]
[1760990052963,2.03861176,188.99,188.93,2.74]
[1760990053168,3.97861176,188.95,188.91,2.74]
[1760990053367,1.94,188.94,188.91,2.74]
[1760990053565,2.03861176,188.95,188.91,2.74]
[1760990053769,3.97861176,188.95,188.91,2.74]
[1760990054271,3.97861176,188.93,188.87,2.74]
[1760990054482,2.03861176,188.93,188.9,4.7633]
[1760990054670,2.03861176,188.96,188.91,2.74]
[1760990055181,2.03861176,188.98,188.94,2.93]
[1760990055567,3.97861176,188.98,188.94,2.93]
[1760990056773,2.03861176,188.98,188.95,2.93]
[1760990057177,4.15514176,189.0,188.95,2.93]
[1760990057573,2.21514176,189.0,188.95,7.692]
[1760990057778,1.94,188.99,188.95,7.692]
[1760990058778,1.94,188.99,188.95,4.762]
[1760990058967,1.94,188.99,188.95,7.692]
[1760990063481,1.94,188.99,188.96,2.93]
[1760990067285,3.97861176,188.99,188.95,7.412]
[1760990067583,1.94,188.98,188.95,7.412]
[1760990068082,2.03861176,188.99,188.96,2.65]
[1760990068287,3.97861176,188.99,188.96,2.65]
[1760990068874,1.94,188.98,188.95,7.412]
[1760990069890,2.03861176,188.99,188.96,2.65]
[1760990070086,2.95958778,189.04,188.98,2.65]
[1760990070386,1.94,189.01,188.94,2.65]
[1760990071288,1.94,189.01,188.98,2.65]
[1760990075095,1.94,189.01,188.97,4.7615]
[1760990075593,1.94,189.01,188.95,4.762]
[1760990075884,1.94,188.97,188.93,4.89268784]
[1760990076088,1.94,188.97,188.93,2.65]
[1760990076486,2.03861176,188.98,188.94,2.65]
[1760990076687,1.94,188.97,188.94,2.65]
[1760990078280,2.03861176,188.96,188.91,2.65]
[1760990078482,3.97861176,188.96,188.91,2.65]
[1760990078993,3.97861176,188.96,188.92,4.7628]
[1760990079194,3.97861176,188.96,188.93,2.65]
[1760990079692,3.97861176,188.96,188.93,7.4126]
[1760990079886,2.03861176,188.96,188.94,2.65]
[1760990080282,1.94,188.95,188.91,9.65568784]
[1760990080488,3.97861176,188.94,188.9,7.54268784]
[1760990080993,3.97861176,188.94,188.9,2.65]
[1760990081293,1.94,188.91,188.88,2.65]
[1760990081497,2.03861176,188.9,188.88,2.65]